[Event "Slovakian ECo-C Extraliga 2024-25"]
[Site "Slovakia"]
[Date "2025.01.19"]
[Round "4.7"]
[White "Kusiak, Matej"]
[Black "Garban, Mario"]
[Result "1/2-1/2"]
[Annotator "TA"]
[ECO "B07"]
[WhiteElo "2227"]
[BlackElo "2173"]
[PlyCount "132"]
[EventDate "2024.09.12"]
[EventType "team-tourn"]
[EventCountry "SVK"]
[SourceTitle "playchess.com"]
[Source "ChessBase"]
[SourceQuality "1"]
[TimeControl "5400+30"]

{[%evp 12,132,43,33,32,14,36,16,20,15,31,31,19,39,33,34,39,-15,-6,-6,-6,-9,-14,-14,-4,-11,0,0,0,0,0,-14,-12,-20,10,-14,8,0,0,0,0,0,0,0,0,-10,0,0,2,0,0,0,0,0,0,0,0,-19,0,0,0,0,0,0,0,0,0,0,0,0,0,0,0,0,0,0,0,-15,-22,-14,0,0,0,0,0,0,0,0,0,0,0,0,0,0,0,0,0,0,0,-8,0,0,0,0,0,0,0,0,0,0,54,0,0,0,0,0,0,0,0,0,0,0,0]} 1. e4 {[%emt 0:00:03]} d6 {[%emt 0:00:17]} 2. d4 {[%emt 0:00:04]} Nf6 {[%emt 0:00:10]} 3. Nc3 {[%emt 0:00:12]} e5 {[%emt 0:00:48]} 4. dxe5 {[%emt 0:00:04]} dxe5 {[%emt 0:00:15]} 5. Qxd8+ {[%emt 0:00:05]} Kxd8 {[%emt 0:00:10]} 6. Nf3 {[%emt 0:03:51]} Bd6 {[%emt 0:08:09]} 7. Bc4 {[%emt 0:02:39]} Ke7 {[%emt 0:01:32] B07: Pirc Defence: Miscellaneous Systems.} 8. Nh4 $146 {[%emt 0:02:04]} (8. O-O h6 9. Nd5+ Nxd5 10. Bxd5 Nd7 {½-½ Guo,A (2445)-Kamsky,G (2659) Dortmund Sparkassen op 50th 2023 (9)}) 8... c6 {[%emt 0:10:38]} 9. Nf5+ {[%emt 0:02:05]} Bxf5 {[%emt 0:00:15]} 10. exf5 {[%emt 0:00:01]} Nbd7 {[%emt 0:07:30]} 11. Bg5 {[%emt 0:10:03]} Bb4 {[%emt 0:05:14]} 12. O-O-O {[%emt 0:02:03]} Bxc3 {[%emt 0:02:42]} 13. bxc3 {[%emt 0:00:02] A sharp opening} Rhe8 {[%emt 0:00:56] [#]} 14. Rxd7+ {[%emt 0:16:24]} Kxd7 $11 {[%emt 0:00:35]} 15. Bxf7 {[%emt 0:00:05]} Re7 {[%emt 0:04:36]} 16. Rd1+ {[%emt 0:00:07]} Kc7 {[%emt 0:00:21]} 17. Be6 {[%emt 0:00:07]} Rae8 {[%emt 0:00:36]} 18. Re1 {[%emt 0:00:51]} Rxe6 {[%emt 0:07:30]} (18... h6 {looks sharper.} 19. Bh4 Rxe6 20. fxe6 Kd6) 19. fxe6 {[%emt 0:00:04]} Rxe6 {[%emt 0:00:29][%mdl 4096] Endgame KRB-KRN} 20. c4 {[%emt 0:05:48]} Kd7 {[%emt 0:18:39]} 21. Be3 {[%emt 0:01:17]} b6 {[%emt 0:01:07]} 22. h3 {[%emt 0:02:04]} Kc7 {[%emt 0:05:26]} (22... c5 $5) 23. f3 {[%emt 0:03:47]} Re8 {[%emt 0:04:39]} 24. Bd2 {[%emt 0:08:09]} Kd6 {[%emt 0:10:37]} 25. Bb4+ {[%emt 0:00:16]} Ke6 {[%emt 0:00:44]} 26. g4 {[%emt 0:01:06]} Kf7 {[%emt 0:01:28]} 27. Bc3 {[%emt 0:01:22]} Nd7 {[%emt 0:02:28]} 28. Kd2 {[%emt 0:01:00]} g5 {[%emt 0:01:45]} 29. Ke3 {[%emt 0:01:11]} b5 {[%emt 0:01:28]} 30. cxb5 {[%emt 0:03:52]} cxb5 {[%emt 0:00:06]} 31. Rd1 {[%emt 0:00:57]} Nb6 {[%emt 0:00:28]} 32. Ke4 {[%emt 0:06:29][%cal Od1d6]} Rc8 {[%emt 0:00:37]} 33. Bxe5 {[%emt 0:12:18]} Rxc2 {[%emt 0:00:06]} 34. Rb1 {[%emt 0:00:28]} a6 {[%emt 0:00:27]} 35. Rb2 {[%emt 0:00:06]} Rc4+ {[%emt 0:02:11]} 36. Bd4 {[%emt 0:02:24]} Na4 {[%emt 0:01:14]} 37. Rh2 {[%emt 0:00:43]} Nc5+ {[%emt 0:00:55]} 38. Kd5 {[%emt 0:06:49]} Ne6 {[%emt 0:00:07]} 39. Be5 {[%emt 0:00:53]} Nf4+ {[%emt 0:00:23]} 40. Kd6 {[%emt 0:03:13]} Ng6 {[%emt 0:00:09]} 41. Rd2 {[%emt 0:00:00]} h6 {[%emt 0:00:00]} 42. Bd4 {[%emt 0:00:00]} b4 {[%emt 0:00:00]} 43. Kd5 {[%emt 0:00:00]} Rc1 {[%emt 0:00:00]} 44. Rb2 {[%emt 0:00:01]} Nf4+ {[%emt 0:00:05]} 45. Ke4 {[%emt 0:00:27]} Re1+ {[%emt 0:01:20]} (45... Nxh3 $6 46. Rxb4 Re1+ 47. Kf5 $16) 46. Be3 $1 {[%emt 0:00:55]} a5 {[%emt 0:00:13][%cal Of4d5]} (46... Nxh3 47. Rxb4 Nf4 48. Rb7+ Kg6 49. Rb6+ Kf7 50. Rb7+ (50. Rxa6 Ng2 $11) 50... Ke6 51. Kd4) 47. h4 {[%emt 0:00:54]} Nd5 {[%emt 0:02:05]} 48. Kxd5 {[%emt 0:00:19]} Rxe3 {[%emt 0:00:05]} 49. hxg5 {[%emt 0:00:29]} hxg5 {[%emt 0:00:05] KR-KR} 50. Rf2 {[%emt 0:00:19]} Kf6 {[%emt 0:01:09]} 51. Kd4 {[%emt 0:00:10]} Ra3 {[%emt 0:00:11]} 52. Ke4 {[%emt 0:00:54]} Rc3 {[%emt 0:01:07]} 53. Kd4 {[%emt 0:01:17]} Ke6 {[%emt 0:00:32]} 54. Re2+ {[%emt 0:01:06]} Kd6 {[%emt 0:00:11]} 55. Ke4 {[%emt 0:00:05]} Kc6 {[%emt 0:01:05]} 56. f4 {[%emt 0:01:32]} Rc4+ {[%emt 0:00:30]} 57. Kf5 {[%emt 0:00:04]} Rc5+ {[%emt 0:01:05]} ({Don't play} 57... Rxf4+ 58. Kxg5 Rf8 59. Kh6 $16) 58. Ke4 {[%emt 0:00:07]} Kd6 {[%emt 0:01:22]} 59. Rd2+ {[%emt 0:01:15]} Ke6 {[%emt 0:00:20] [#]} 60. f5+ {[%emt 0:03:13]} Ke7 {[%emt 0:00:09]} (60... Kf6 $11) 61. Kd4 {[%emt 0:00:28]} (61. Rd5 $1 $14 Rc3 62. Rxa5) 61... Rc3 {[%emt 0:00:22] The position is equal.} 62. Ke5 {[%emt 0:00:48]} Re3+ {[%emt 0:00:17]} 63. Kd4 {[%emt 0:00:24]} Rg3 {[%emt 0:00:33][%cal Oe7f6]} 64. Ke5 {[%emt 0:00:05]} Re3+ {[%emt 0:01:09]} 65. Kd4 Rg3 {[%emt 0:00:43][%cal Oe7f6] And now ...Kf6! would win.} 66. Ke5 {[%emt 0:01:16] f6+ is the strong threat.} Re3+ {Weighted Error Value: White=0.05 (flawless) /Black=0.05 (flawless)   Mistake:       	White=2     	Black=1      Inaccurate:     	---       	Black=1      OK:         	White=31    	Black=19     Best:        	White=2     	Black=3      Strong:       	White=1     	---} 1/2-1/2

[Event "Slovakian ECo-C Extraliga 2024-25"]
[Site "Slovakia"]
[Date "2025.01.19"]
[Round "4.7"]
[White "Petran, Peter"]
[Black "Rucek, Kristian"]
[Result "1-0"]
[Annotator "TA"]
[ECO "D34"]
[WhiteElo "2165"]
[BlackElo "2172"]
[PlyCount "83"]
[EventDate "2024.09.12"]
[EventType "team-tourn"]
[EventCountry "SVK"]
[SourceTitle "playchess.com"]
[Source "ChessBase"]
[SourceQuality "1"]
[TimeControl "5400+30"]

{[%evp 22,83,0,0,0,0,20,19,41,30,107,47,54,31,142,56,50,59,89,82,93,89,92,93,91,49,85,87,62,73,118,114,150,116,196,202,292,292,356,342,379,367,399,399,425,391,615,614,626,583,536,484,468,0,536,551,535,479,792,790,752,750,658,641]} 1. g3 {[%emt 0:00:30]} d5 {[%emt 0:00:27]} 2. Nf3 {[%emt 0:00:00]} c5 {[%emt 0:00:11]} 3. c4 {[%emt 0:00:00]} e6 {[%emt 0:02:19]} 4. cxd5 {[%emt 0:00:11]} exd5 {[%emt 0:00:07]} 5. Bg2 {[%emt 0:00:18]} Nc6 {[%emt 0:00:32]} 6. O-O {[%emt 0:00:20]} Nf6 {[%emt 0:01:37]} 7. d4 {[%emt 0:00:20]} Be7 {[%emt 0:00:06]} 8. Nc3 {[%emt 0:00:46]} O-O {[%emt 0:00:29]} 9. b3 {[%emt 0:07:37]} Ne4 {[%emt 0:04:54]} 10. Bb2 {[%emt 0:04:45]} Bf6 {[%emt 0:00:10]} 11. e3 {[%emt 0:09:27]} Bg4 {[%emt 0:13:37]} 12. Ne2 {[%emt 0:01:32]} Qa5 {[%emt 0:08:16]} 13. Re1 {[%emt 0:16:51]} Rac8 {[%emt 0:07:40]} 14. Ne5 {[%emt 0:05:58]} Bxe2 {[%emt 0:21:49] The position is equal.} 15. Rxe2 {[%emt 0:03:36] Black must now prevent Nd7.} Rfe8 {[%emt 0:01:16] [#]} (15... Bxe5 $11 16. dxe5 Rfd8) 16. Nd7 {[%emt 0:01:50]} (16. Bxe4 $1 $16 dxe4 17. Nc4) 16... cxd4 $14 {[%emt 0:19:41]} 17. Nxf6+ {[%emt 0:01:19]} gxf6 {[%emt 0:02:29]} ({Better is} 17... Nxf6 $14 18. Bxd4 (18. exd4 Rxe2 19. Qxe2 h5 $11) 18... Nxd4 19. Qxd4 Ne4) 18. Bxd4 {[%emt 0:03:14]} ({White should try} 18. Rc2 $16) 18... Nxd4 {[%emt 0:00:04]} 19. Qxd4 {[%emt 0:00:17]} Qc3 {[%emt 0:00:12]} 20. Qxc3 {[%emt 0:02:18]} Rxc3 {[%emt 0:00:13]} 21. Rd1 {[%emt 0:01:24][%cal Og2e4]} Rec8 {[%emt 0:00:03]} 22. Bxe4 {[%emt 0:04:15]} (22. Rxd5 $2 Rc1+ 23. Bf1 Nc3 $19) 22... dxe4 $16 {[%emt 0:00:04][%mdl 4096] Endgame. KRR-KRR} 23. g4 {[%emt 0:00:31]} Rc1 {[%emt 0:07:41]} 24. Rxc1 {[%emt 0:01:01]} Rxc1+ {[%emt 0:00:03] KR-KR} 25. Kg2 {[%emt 0:00:06]} Kg7 {[%emt 0:01:43][%cal Of6f5] White stays focused until the end.} 26. Rd2 {[%emt 0:00:44]} a6 {[%emt 0:01:54]} 27. Rd4 {[%emt 0:00:53]} Ra1 {[%emt 0:01:12]} (27... Rc2 $16) 28. a4 $18 {[%emt 0:00:25]} (28. Rxe4 Rxa2 29. Re7 b5 $11) 28... a5 {[%emt 0:00:08]} (28... Rc1 {was called for.} 29. Rb4 (29. Rxe4 Rc5 $18) 29... Rc7) 29. Rd5 {[%emt 0:01:31]} (29. Rxe4 Ra3 $11) 29... b6 {[%emt 0:03:59]} 30. Rb5 {[%emt 0:00:54]} Rb1 {[%emt 0:00:04]} 31. Rxb6 {[%emt 0:00:13]} Rb2 {[%emt 0:00:01]} 32. Rb5 {[%emt 0:00:26]} Kg6 {[%emt 0:00:10]} 33. Kg3 {[%emt 0:00:10]} (33. Rxa5 Rxb3 34. Rb5 Ra3 $18) 33... h6 {[%emt 0:00:11]} (33... Kh6 $142 34. Kf4 (34. Rxa5 Rxb3 35. Rb5 Ra3 $18) 34... Rxf2+ 35. Kxe4 Rb2) 34. h4 {[%emt 0:00:19][%cal Bh2h4,Bh4h5][%mdl 32]} Kh7 {[%emt 0:01:21]} 35. h5 {[%emt 0:02:13]} Kg7 {[%emt 0:00:06]} 36. Rb6 {[%emt 0:00:31]} Rc2 {[%emt 0:01:22]} 37. Rb5 {[%emt 0:05:12]} Rb2 {[%emt 0:00:05]} 38. Kf4 {[%emt 0:02:10] White is clearly winning.} Rxf2+ {[%emt 0:00:04]} 39. Kxe4 {[%emt 0:00:08]} Rg2 {[%emt 0:00:21]} (39... Rb2 $142 40. Kd5 (40. Rxa5 Rxb3 41. Rb5 Ra3 $18) 40... Kh7) 40. Rxa5 {[%emt 0:00:29]} Rxg4+ {[%emt 0:00:02]} 41. Kd3 {[%emt 0:00:17]} Kf8 {[%emt 0:00:00]} 42. Rb5 {[%emt 0:00:00] Weighted Error Value: White=0.23 (precise) /Black=0.43.  Mistake:       	White=2     	Black=6      Inaccurate:     	White=1     	Black=4      OK:         	White=12    	Black=2      Best:        	White=5     	Black=2} 1-0

[Event "Slovakian ECo-C Extraliga 2024-25"]
[Site "Slovakia"]
[Date "2025.01.19"]
[Round "4.7"]
[White "Szegi, Tamas"]
[Black "Csonka, Attila Istvan"]
[Result "1/2-1/2"]
[Annotator "TA"]
[ECO "B22"]
[WhiteElo "2118"]
[BlackElo "2281"]
[PlyCount "31"]
[EventDate "2024.09.12"]
[EventType "team-tourn"]
[EventCountry "SVK"]
[SourceTitle "playchess.com"]
[Source "ChessBase"]
[SourceQuality "1"]
[TimeControl "5400+30"]

{[%evp 17,31,0,13,0,0,0,0,0,0,0,0,-43,-26,-63,-63,-66]} 1. e4 {[%emt 0:00:08][%cal Be2e4,Be4e5][%mdl 32]} c5 {[%emt 0:00:07]} 2. c3 {[%emt 0:00:05]} Nf6 {[%emt 0:00:06]} 3. e5 {[%emt 0:00:04]} Nd5 {[%emt 0:00:07]} 4. d4 {[%emt 0:00:06]} cxd4 {[%emt 0:00:08]} 5. Nf3 {[%emt 0:00:06]} e6 {[%emt 0:02:42]} 6. cxd4 {[%emt 0:09:09]} d6 {[%emt 0:04:48]} 7. Nc3 {[%emt 0:06:05]} Nxc3 {[%emt 0:03:12]} 8. bxc3 {[%emt 0:00:12]} Qc7 {[%emt 0:00:07]} 9. Bd2 {[%emt 0:08:44]} Bd7 {[%emt 0:00:41]} 10. Bd3 {[%emt 0:01:13] B22: Sicilian: 2 c3.} Bc6 {[%emt 0:00:13]} 11. O-O {[%emt 0:01:36]} Nd7 {[%emt 0:00:19][%cal Rd6e5]} 12. Bf4 {[%emt 0:04:29] The position is equal.} dxe5 {[%emt 0:14:39]} 13. Nxe5 {[%emt 0:00:57][%cal Oe5g6] [#] and Ng6! would now be decisive} Bd6 {[%emt 0:00:40]} 14. Qe2 $146 {[%emt 0:04:55]} (14. Re1 Nxe5 15. Bxe5 O-O-O 16. a4 Kb8 17. Qb3 Bxe5 18. Rxe5 Rd5 19. Rxd5 Bxd5 20. c4 {½-½ Glavina,P (2400)-Komljenovic,D (2465) Ceuta 1995 (7)}) 14... Nxe5 {[%emt 0:07:13]} 15. Bxe5 {[%emt 0:01:25]} Bxe5 {[%emt 0:01:38]} 16. dxe5 {[%emt 0:01:14] White got outplayed after the opening.   Weighted Error Value: White=0.20 (precise) /Black=0.02 (flawless)   Inaccurate:     	White=2     	---        OK:         	White=1     	Black=4      Best:        	---       	Black=1} 1/2-1/2

[Event "Slovakian ECo-C Extraliga 2024-25"]
[Site "Slovakia"]
[Date "2025.01.19"]
[Round "4.7"]
[White "Benci, Jozef"]
[Black "Skreko, Igor"]
[Result "0-1"]
[Annotator "TA"]
[ECO "E62"]
[WhiteElo "1954"]
[BlackElo "2242"]
[PlyCount "80"]
[EventDate "2024.09.12"]
[EventType "team-tourn"]
[EventCountry "SVK"]
[SourceTitle "playchess.com"]
[Source "ChessBase"]
[SourceQuality "1"]
[TimeControl "5400+30"]

{[%evp 15,80,26,66,16,7,-9,25,7,7,16,45,51,58,42,68,25,32,13,28,27,25,25,24,14,14,0,18,0,0,0,0,-10,-15,-63,-54,-93,-74,-83,-70,-110,-75,-66,-77,-98,-100,-102,-87,-345,-85,-90,-89,-367,-359,-352,-352,-329,-218,-1640,-1557,-1594,-1585,-1527,-1440,-1414,-1291,-1584,-1573]} 1. Nf3 {[%emt 0:00:29]} Nf6 {[%emt 0:00:04]} 2. c4 {[%emt 0:00:41]} g6 {[%emt 0:00:03]} 3. g3 {[%emt 0:09:39]} Bg7 {[%emt 0:00:19]} 4. Bg2 {[%emt 0:00:08]} O-O {[%emt 0:00:06]} 5. O-O {[%emt 0:00:07]} d6 {[%emt 0:00:06]} 6. d4 {[%emt 0:10:38]} Nc6 {[%emt 0:01:56]} 7. Nc3 {[%emt 0:04:45]} Bf5 {[%emt 0:00:33]} 8. b3 {[%emt 0:13:02]} e5 {[%emt 0:01:44]} 9. dxe5 {[%emt 0:14:07]} ({White should play} 9. d5 $14) 9... dxe5 $11 {[%emt 0:01:09]} 10. Bb2 {[%emt 0:03:00]} Qc8 {[%emt 0:13:18]} 11. Qc1 {[%emt 0:13:58]} Rd8 {[%emt 0:13:09]} 12. Rd1 {[%emt 0:02:51]} Qe6 {[%emt 0:04:30] [#] Inhibits Nd5.} 13. Nd5 $1 {[%emt 0:06:08]} Rd7 {[%emt 0:08:57]} (13... Rac8 14. Ng5) 14. Ng5 {[%emt 0:03:12]} Qe8 {[%emt 0:00:08]} 15. Nxf6+ {[%emt 0:02:06]} Bxf6 {[%emt 0:00:13]} 16. Ne4 {[%emt 0:00:49]} Bxe4 {[%emt 0:07:09]} 17. Bxe4 {[%emt 0:00:12]} Rad8 {[%emt 0:01:17]} 18. Rxd7 {[%emt 0:03:14]} Qxd7 {[%emt 0:00:07]} 19. Bc3 {[%emt 0:02:13]} Nd4 {[%emt 0:05:10]} 20. Qe3 {[%emt 0:07:26]} (20. Bxb7 $2 Nxe2+ 21. Kg2 Nxc1 $19) 20... Qg4 {[%emt 0:05:26]} 21. Bf3 {[%emt 0:00:31]} (21. Bxb7 $2 Nc2 (21... Nxe2+ 22. Kf1 $11) 22. h3 Qxh3 $19) 21... Nxf3+ {[%emt 0:00:49]} 22. exf3 {[%emt 0:00:03]} Qf5 {[%emt 0:00:49]} 23. Qe4 {[%emt 0:01:03]} Rd3 {[%emt 0:01:38]} 24. Qxf5 {[%emt 0:00:44]} (24. Bb4 $11 {should be considered.}) 24... gxf5 {[%emt 0:00:07][%mdl 4096] Endgame KRB-KRB} 25. Bb2 {[%emt 0:00:43] [#]} Rd2 $1 {[%emt 0:00:54]} ({Don't play} 25... Rxf3 $6 26. Re1 $14) 26. Rb1 {[%emt 0:00:42]} Kg7 {[%emt 0:00:56]} 27. a4 {[%emt 0:00:32]} e4 {[%emt 0:00:51]} 28. Bxf6+ {[%emt 0:00:37]} Kxf6 {[%emt 0:00:02]} 29. fxe4 {[%emt 0:00:41]} fxe4 $17 {[%emt 0:00:02] KR-KR} 30. Kf1 {[%emt 0:00:32]} Ke5 {[%emt 0:00:32] Black is more active.} 31. Ke1 $2 {[%emt 0:00:29][%mdl 8192]} (31. h4 $17) 31... Rd3 $2 {[%emt 0:00:19]} (31... e3 $1 $19 32. fxe3 Rxh2) 32. Ke2 {[%emt 0:00:27]} Kd4 {[%emt 0:00:16]} 33. Rb2 $2 {[%emt 0:00:38][%mdl 8192]} (33. g4 $17) 33... Kc3 $19 {[%emt 0:00:24]} 34. Rb1 {[%emt 0:00:08]} Kc2 {[%emt 0:00:22][%csl LRb1,LRb3]} 35. Re1 {[%emt 0:00:50]} Rxb3 {[%emt 0:00:40] White must now prevent ...a5.} (35... Kxb3 36. Rb1+ Kxa4 (36... Kxc4 37. Rxb7 Rd7 38. Rxa7 $16) 37. Rxb7 $14) 36. Kf1 $2 {[%emt 0:00:22]} (36. f4) 36... Rb1 {[%emt 0:00:36]} 37. Rxb1 {[%emt 0:00:12]} Kxb1 {[%emt 0:00:01]} 38. Ke2 {[%emt 0:00:15]} Kc2 {[%emt 0:00:04]} 39. Ke3 {[%emt 0:00:41]} Kb3 {[%emt 0:00:28][%csl LRa4,LRc4]} 40. Kxe4 {[%emt 0:00:21]} Kxa4 {[%emt 0:00:36]} 0-1

[Event "Slovakian ECo-C Extraliga 2024-25"]
[Site "Slovakia"]
[Date "2025.01.19"]
[Round "4.8"]
[White "Rachela, Milan"]
[Black "Sarkozi, Szabolcs"]
[Result "1-0"]
[Annotator "TA"]
[ECO "A04"]
[WhiteElo "2318"]
[BlackElo "2104"]
[PlyCount "55"]
[EventDate "2024.09.12"]
[EventType "team-tourn"]
[EventCountry "SVK"]
[SourceTitle "playchess.com"]
[Source "ChessBase"]
[SourceQuality "1"]
[TimeControl "5400+30"]

{[%evp 9,55,-8,-1,-10,-10,-22,-1,-38,-22,-31,-34,-44,-45,-44,-18,-30,-29,-33,-34,-25,-20,-33,0,-85,-93,-133,0,19,184,185,190,183,192,210,205,189,197,200,201,183,230,214,228,222,229,225,435,436]} 1. Nf3 {[%emt 0:00:04]} f5 {[%emt 0:00:34]} 2. d3 {[%emt 0:00:55]} d6 {[%emt 0:02:52]} 3. g3 {[%emt 0:00:17]} Nf6 {[%emt 0:00:18]} 4. Bg2 {[%emt 0:00:03]} e5 {[%emt 0:00:25]} 5. c3 {[%emt 0:00:27]} Be7 {[%emt 0:03:44]} 6. O-O {[%emt 0:01:56] A04: Unusual lines after 1 Nf3 and King's Indian Attack.} O-O {[%emt 0:04:47]} 7. Nbd2 {[%emt 0:09:58][%cal Bb1d2,Bd2c4,Bc4e3][%mdl 32]} Kh8 {[%emt 0:10:04]} 8. Nc4 $146 {[%emt 0:08:22][%cal Oe2e4] The position is equal.} (8. Qb3 Nc6 9. a4 Qe8 10. Qa2 Qh5 11. Ne1 f4 12. Nef3 d5 13. e4 dxe4 14. dxe4 fxg3 15. fxg3 {0-1 Nuristani,A (1802)-Weber,E (2033) Berlin Lieb Memorial 5th 2019 (2)}) 8... Qe8 {[%emt 0:03:37]} 9. Ne1 {[%emt 0:08:47]} Qh5 {[%emt 0:11:43]} 10. f4 {[%emt 0:02:49]} e4 {[%emt 0:04:13]} 11. Nc2 {[%emt 0:06:41]} Nbd7 {[%emt 0:10:45]} 12. a4 {[%emt 0:09:25]} d5 {[%emt 0:15:42]} 13. N4e3 {[%emt 0:01:43]} a5 {[%emt 0:06:22]} 14. b3 {[%emt 0:03:04]} Ra6 {[%emt 0:02:31]} 15. Nd4 $1 {[%emt 0:05:03]} Bc5 {[%emt 0:02:18]} 16. Ndxf5 {[%emt 0:07:40]} Ng4 $1 $17 {[%emt 0:03:24][%csl Gg4][%cal Rh5h2]} (16... Qxf5 17. d4 Bxd4 18. Qxd4 $18) 17. h3 {[%emt 0:00:05]} Nxe3 {[%emt 0:07:57]} (17... Rxf5 18. hxg4 Bxe3+ (18... Qxg4 $2 19. d4 $18) 19. Bxe3 Qxg4 20. dxe4 dxe4 21. Bf2 $11) (17... Qxf5 $17 18. hxg4 Bxe3+ 19. Bxe3 Qxg4 20. dxe4 dxe4) 18. Nxe3 $11 {[%emt 0:00:13]} Bxe3+ {[%emt 0:00:53] This costs Black the game.} (18... d4 $11 {and Black stays safe.} 19. g4 Qh4) 19. Bxe3 $18 {[%emt 0:00:08]} Nf6 {[%emt 0:00:40] [#]} 20. f5 $1 {[%emt 0:04:08][%mdl 512]} Bxf5 {[%emt 0:06:28]} (20... Re8 21. g4) 21. g4 {[%emt 0:00:05]} Nxg4 {[%emt 0:00:50]} 22. hxg4 {[%emt 0:00:06]} Qxg4 {[%emt 0:00:03] [#]} 23. dxe4 $1 {[%emt 0:05:08]} (23. Rf4 Qg3 24. Qd2 Rg6 $16) 23... Rg6 {[%emt 0:00:44][%csl Gg6][%cal Rg4g2]} 24. Rf2 {[%emt 0:00:02]} Qxe4 {[%emt 0:00:23]} (24... dxe4 25. Qd4 h6) 25. Qd4 {[%emt 0:00:12]} Qe6 {[%emt 0:00:56]} 26. Raf1 {[%emt 0:00:22]} h5 {[%emt 0:00:39]} 27. Bd2 {[%emt 0:04:59] Hoping for Qh4.} Kh7 $2 {[%emt 0:00:36]} (27... Rff6 {is a better defense.}) 28. Qh4 {[%emt 0:02:55] Weighted Error Value: White=0.10 (very precise) /Black=0.35  Loses game:     	---       	Black=1      Mistake:       	White=1     	Black=3      Inaccurate:     	White=1     	Black=1      OK:         	White=7     	Black=9      Best:        	White=2     	---        Strong:       	White=2     	Black=1      Brilliant:      	White=1     	---} 1-0

[Event "Slovakian ECo-C Extraliga 2024-25"]
[Site "Slovakia"]
[Date "2025.01.19"]
[Round "4.8"]
[White "Stevik, Patrik"]
[Black "Teglas Balazs"]
[Result "1-0"]
[Annotator "TA"]
[ECO "D02"]
[WhiteElo "2314"]
[BlackElo "2109"]
[PlyCount "51"]
[EventDate "2024.09.12"]
[EventType "team-tourn"]
[EventCountry "SVK"]
[SourceTitle "playchess.com"]
[Source "ChessBase"]
[SourceQuality "1"]
[TimeControl "5400+30"]

{[%evp 11,51,21,36,29,24,25,38,0,25,13,19,0,0,0,29,-4,-3,-11,0,-37,0,0,20,6,0,0,0,0,92,71,139,103,130,150,141,148,158,166,221,238,964,962]} 1. Nf3 {[%emt 0:00:03]} d5 {[%emt 0:01:25]} 2. g3 {[%emt 0:00:01]} Nc6 {[%emt 0:04:22]} 3. d4 {[%emt 0:00:40]} Bf5 {[%emt 0:00:37]} 4. Bg2 {[%emt 0:04:00]} Nb4 {[%emt 0:03:37]} 5. Na3 {[%emt 0:03:23]} e6 {[%emt 0:00:25]} 6. O-O {[%emt 0:01:10]} Nf6 {[%emt 0:08:08]} 7. c3 {[%emt 0:03:36] D02: 1 d4 d5 2 Nf3 sidelines, including 2...Nf6 3 g3 and 2...Nf6 3 Bf4.} Nc6 {[%emt 0:00:37]} 8. Qb3 {[%emt 0:11:13]} a6 {[%emt 0:07:45]} 9. c4 {[%emt 0:03:46] White is slightly better.} (9. Qxb7 $2 Na5 $19) 9... Be7 {[%emt 0:18:27]} 10. Bf4 $146 {[%emt 0:02:34]} (10. Qxb7 $2 {perishes.} Na5 $19) (10. Bd2 Rb8 11. Rfd1 O-O 12. Rac1 Be4 13. Be1 dxc4 14. Nxc4 Qd5 15. Bc3 Qb5 16. Ncd2 Qxb3 17. Nxb3 {0-1 Wagh,S (2217)-Puranik,A (2611) Yerevan op-A 5th 2023 (1)}) 10... O-O {[%emt 0:08:10]} 11. cxd5 {[%emt 0:17:34]} Nxd5 {[%emt 0:00:14]} 12. Bd2 {[%emt 0:00:46]} Ndb4 {[%emt 0:13:40]} 13. Bc3 {[%emt 0:04:25]} Be4 {[%emt 0:04:50]} 14. Qd1 {[%emt 0:00:02]} Qd5 {[%emt 0:06:33]} 15. Bxb4 {[%emt 0:06:42]} (15. Nc4 $5) 15... Nxb4 {[%emt 0:01:16]} (15... Bxb4 $15 16. Nc2 Be7) 16. Nb1 $11 {[%emt 0:00:06][%cal Ba3b1,Bb1c3,Bc3e4][%mdl 32]} Nxa2 {[%emt 0:15:04] [#]} 17. Rxa2 $1 {[%emt 0:10:12]} Qxa2 {[%emt 0:00:05]} 18. Nc3 $1 {[%emt 0:00:01][%csl LRa2,LRe4]} Qxb2 {[%emt 0:00:05]} 19. Nxe4 {[%emt 0:00:02]} Qa3 {[%emt 0:02:12]} (19... Rac8 $11 {remains equal.}) 20. Qb1 {[%emt 0:01:46][%mdl 1024] White has strong compensation.} Rfb8 {[%emt 0:02:21]} (20... a5 $142) 21. Ne5 {[%emt 0:01:08][%csl Oe5] Strong Square White (e5)} Qb4 {[%emt 0:00:24] [#] Black is weak on the light squares} 22. Qd3 {[%emt 0:01:07]} Rd8 {[%emt 0:00:16] [#]} 23. e3 {[%emt 0:01:02]} Rab8 {[%emt 0:00:52]} 24. Rb1 {[%emt 0:00:29] Inhibits c5. White has more active pieces.} Qa3 {[%emt 0:00:33]} (24... Qa5 $142) 25. Qc2 $18 {[%emt 0:00:26][%cal Oe5c4] and Nc4! should not be overlooked} c6 $2 {[%emt 0:00:19]} (25... Qa5 26. Nc5 Bxc5) 26. Nc4 {[%emt 0:00:11] Weighted Error Value: White=0.11 (very precise) /Black=0.55  Mistake:       	---       	Black=5      Inaccurate:     	White=3     	Black=1      OK:         	White=8     	Black=5      Best:        	White=3     	---} 1-0